[Event "Titled Tuesday Blitz August 22 Late 2023"]
[White "Koellner, Ruben Gideon"]
[Black "SergioMoralesG"]
[WhiteFideId "12993093"]
[WhiteElo "2716"]
[BlackElo "2415"]
[Result "1-0"]
[Round "1"]
[TimeControl "180+1"]
[Date "2023.08.22"]
[WhiteClock "0:02:19"]
[BlackClock "0:00:00"]
[Board "94"]

1. d4 {[%clk 0:03:00]}  d5 {[%clk 0:02:59]} 2. Nf3 {[%clk 0:03:00]}  Nf6 {[%clk 0:02:58]} 3. e3 {[%clk 0:03:00]}  Bf5 {[%clk 0:02:53]} 4. Ne5 {[%clk 0:03:00]}  e6 {[%clk 0:02:47]} 5. g4 {[%clk 0:02:59]}  Bg6 {[%clk 0:02:43]} 6. h4 {[%clk 0:03:00]}  h5 {[%clk 0:01:54]} 7. Nxg6 {[%clk 0:02:59]}  fxg6 {[%clk 0:01:55]} 8. g5 {[%clk 0:02:59]}  Ne4 {[%clk 0:01:51]} 9. Bd3 {[%clk 0:02:58]}  Bd6 {[%clk 0:01:34]} 10. Nd2 {[%clk 0:02:57]}  Nc6 {[%clk 0:00:19]} 11. Nxe4 {[%clk 0:02:55]}  dxe4 {[%clk 0:00:20]} 12. Bxe4 {[%clk 0:02:56]}  Qe7 {[%clk 0:00:17]} 13. Bxg6+ {[%clk 0:02:54]}  Kd7 {[%clk 0:00:17]} 14. Bd2 {[%clk 0:02:49]}  Raf8 {[%clk 0:00:17]} 15. Qe2 {[%clk 0:02:45]}  Kc8 {[%clk 0:00:16]} 16. O-O-O {[%clk 0:02:44]}  e5 {[%clk 0:00:16]} 17. d5 {[%clk 0:02:42]}  Nb8 {[%clk 0:00:13]} 18. Bxh5 {[%clk 0:02:41]}  Nd7 {[%clk 0:00:12]} 19. Bg4 {[%clk 0:02:41]}  Kb8 {[%clk 0:00:12]} 20. Bxd7 {[%clk 0:02:37]}  Qxd7 {[%clk 0:00:13]} 21. h5 {[%clk 0:02:37]}  Qf5 {[%clk 0:00:12]} 22. Rdg1 {[%clk 0:02:30]}  Qxf2 {[%clk 0:00:11]} 23. Qxf2 {[%clk 0:02:31]}  Rxf2 {[%clk 0:00:11]} 24. h6 {[%clk 0:02:31]}  gxh6 {[%clk 0:00:09]} 25. gxh6 {[%clk 0:02:32]}  Rf7 {[%clk 0:00:07]} 26. e4 {[%clk 0:02:30]}  a6 {[%clk 0:00:06]} 27. c4 {[%clk 0:02:30]}  b6 {[%clk 0:00:06]} 28. Rf1 {[%clk 0:02:25]}  Rfh7 {[%clk 0:00:05]} 29. Rh5 {[%clk 0:02:20]}  Kb7 {[%clk 0:00:05]} 30. Kc2 {[%clk 0:02:20]}  b5 {[%clk 0:00:05]} 31. b3 {[%clk 0:02:20]}  Kb6 {[%clk 0:00:04]} 32. Be3+ {[%clk 0:02:19]}  Bc5 {[%clk 0:00:03]} 33. Rf6+ {[%clk 0:02:19]}  Kb7 {[%clk 0:00:00]} 34. Bxc5 {[%clk 0:02:19]} 1-0


[Site "https://www.chess.com"]

[Event "Titled Tuesday Blitz August 22 Late 2023"]
[White "Diaz Perez, Michel Alejandro"]
[Black "Titichoca Daza, Daniel"]
[WhiteFideId "3517179"]
[BlackFideId "3309550"]
[WhiteElo "2712"]
[BlackElo "2409"]
[Result "0-1"]
[Round "1"]
[TimeControl "180+1"]
[Date "2023.08.22"]
[WhiteClock "0:00:17"]
[BlackClock "0:01:15"]
[Board "98"]

1. Nf3 {[%clk 0:03:00]}  Nf6 {[%clk 0:02:57]} 2. c4 {[%clk 0:03:01]}  e6 {[%clk 0:02:57]} 3. e3 {[%clk 0:03:01]}  d5 {[%clk 0:02:58]} 4. b3 {[%clk 0:03:01]}  b6 {[%clk 0:02:59]} 5. Bb2 {[%clk 0:03:01]}  Bd6 {[%clk 0:02:59]} 6. Qc2 {[%clk 0:03:00]}  O-O {[%clk 0:02:58]} 7. Bd3 {[%clk 0:03:00]}  Bb7 {[%clk 0:02:35]} 8. cxd5 {[%clk 0:02:44]}  exd5 {[%clk 0:02:33]} 9. Nc3 {[%clk 0:02:33]}  c5 {[%clk 0:02:19]} 10. Nb5 {[%clk 0:02:28]}  Be7 {[%clk 0:02:18]} 11. Ng5 {[%clk 0:02:15]}  h6 {[%clk 0:02:13]} 12. Nh3 {[%clk 0:01:47]}  Nc6 {[%clk 0:02:11]} 13. a3 {[%clk 0:01:46]}  a6 {[%clk 0:02:07]} 14. Nc3 {[%clk 0:01:46]}  d4 {[%clk 0:02:07]} 15. Ne4 {[%clk 0:01:46]}  Ne5 {[%clk 0:02:06]} 16. Nxf6+ {[%clk 0:01:45]}  Bxf6 {[%clk 0:02:07]} 17. e4 {[%clk 0:01:40]}  b5 {[%clk 0:02:00]} 18. O-O {[%clk 0:01:34]}  Rc8 {[%clk 0:01:55]} 19. f4 {[%clk 0:01:34]}  Nxd3 {[%clk 0:01:54]} 20. Qxd3 {[%clk 0:01:34]}  c4 {[%clk 0:01:55]} 21. Qf3 {[%clk 0:01:24]}  c3 {[%clk 0:01:50]} 22. Bc1 {[%clk 0:01:11]}  d3 {[%clk 0:01:49]} 23. Ra2 {[%clk 0:01:11]}  Qd4+ {[%clk 0:01:47]} 24. Nf2 {[%clk 0:01:10]}  cxd2 {[%clk 0:01:40]} 25. Bxd2 {[%clk 0:01:09]}  Rc2 {[%clk 0:01:39]} 26. Rxc2 {[%clk 0:01:09]}  dxc2 {[%clk 0:01:39]} 27. Be3 {[%clk 0:01:05]}  Qc3 {[%clk 0:01:36]} 28. Ng4 {[%clk 0:01:01]}  Bd4 {[%clk 0:01:33]} 29. h3 {[%clk 0:00:49]}  c1=Q {[%clk 0:01:22]} 30. Rxc1 {[%clk 0:00:48]}  Qxc1+ {[%clk 0:01:22]} 31. Kh2 {[%clk 0:00:49]}  Bxe3 {[%clk 0:01:21]} 32. Nxe3 {[%clk 0:00:50]}  f5 {[%clk 0:01:20]} 33. Qg3 {[%clk 0:00:31]}  Bxe4 {[%clk 0:01:20]} 34. Qf2 {[%clk 0:00:29]}  Rd8 {[%clk 0:01:18]} 35. Qh4 {[%clk 0:00:26]}  Qxe3 {[%clk 0:01:14]} 36. Qxd8+ {[%clk 0:00:26]}  Kh7 {[%clk 0:01:15]} 37. Qh4 {[%clk 0:00:24]}  Qxb3 {[%clk 0:01:12]} 38. Qf2 {[%clk 0:00:17]}  Qxa3 {[%clk 0:01:12]} 39. g4 {[%clk 0:00:17]}  Qd3 {[%clk 0:01:10]} 40. gxf5 {[%clk 0:00:17]}  Qc2 {[%clk 0:01:10]} 41. Qxc2 {[%clk 0:00:17]}  Bxc2 {[%clk 0:01:11]} 42. f6 {[%clk 0:00:17]}  gxf6 {[%clk 0:01:11]} 43. Kg3 {[%clk 0:00:18]}  f5 {[%clk 0:01:12]} 44. Kf2 {[%clk 0:00:17]}  Be4 {[%clk 0:01:13]} 45. Ke3 {[%clk 0:00:17]}  a5 {[%clk 0:01:13]} 46. Kd4 {[%clk 0:00:18]}  b4 {[%clk 0:01:13]} 47. Kc4 {[%clk 0:00:18]}  Bc2 {[%clk 0:01:13]} 48. Kd4 {[%clk 0:00:18]}  b3 {[%clk 0:01:14]} 49. Kc3 {[%clk 0:00:19]}  a4 {[%clk 0:01:14]} 50. Kb2 {[%clk 0:00:17]}  Kg6 {[%clk 0:01:15]} 0-1


[Site "https://www.chess.com"]

[Event "Titled Tuesday Blitz August 22 Late 2023"]
[White "Yang, Kevin"]
[Black "Volkov, Maksim"]
[WhiteFideId "30908485"]
[BlackFideId "54123070"]
[WhiteElo "2405"]
[BlackElo "2705"]
[Result "0-1"]
[Round "1"]
[TimeControl "180+1"]
[Date "2023.08.22"]
[WhiteClock "0:00:03"]
[BlackClock "0:00:13"]
[Board "101"]

1. d4 {[%clk 0:03:00]}  d5 {[%clk 0:02:59]} 2. Bf4 {[%clk 0:02:56]}  h5 {[%clk 0:02:52]} 3. Nf3 {[%clk 0:02:52]}  Nf6 {[%clk 0:02:49]} 4. e3 {[%clk 0:02:49]}  Bf5 {[%clk 0:02:45]} 5. c4 {[%clk 0:02:42]}  c6 {[%clk 0:02:44]} 6. Nc3 {[%clk 0:02:41]}  e6 {[%clk 0:02:42]} 7. Qb3 {[%clk 0:02:25]}  Qc8 {[%clk 0:02:41]} 8. Rc1 {[%clk 0:02:17]}  Nbd7 {[%clk 0:02:39]} 9. cxd5 {[%clk 0:02:13]}  Nxd5 {[%clk 0:02:36]} 10. Bg3 {[%clk 0:01:50]}  Nxc3 {[%clk 0:02:28]} 11. bxc3 {[%clk 0:01:46]}  Be7 {[%clk 0:02:28]} 12. h3 {[%clk 0:01:45]}  h4 {[%clk 0:02:27]} 13. Bf4 {[%clk 0:01:43]}  O-O {[%clk 0:02:16]} 14. Be2 {[%clk 0:01:38]}  b5 {[%clk 0:02:14]} 15. c4 {[%clk 0:01:34]}  Qa6 {[%clk 0:02:00]} 16. cxb5 {[%clk 0:01:27]}  Qa5+ {[%clk 0:02:00]} 17. Kf1 {[%clk 0:01:20]}  cxb5 {[%clk 0:01:58]} 18. Bxb5 {[%clk 0:01:07]}  Rab8 {[%clk 0:01:46]} 19. Bxb8 {[%clk 0:01:00]}  Rxb8 {[%clk 0:01:46]} 20. a4 {[%clk 0:00:54]}  a6 {[%clk 0:01:46]} 21. Qc3 {[%clk 0:00:48]}  Qxc3 {[%clk 0:01:35]} 22. Rxc3 {[%clk 0:00:49]}  axb5 {[%clk 0:01:35]} 23. Rc7 {[%clk 0:00:28]}  e5 {[%clk 0:00:44]} 24. Nxe5 {[%clk 0:00:24]}  Nxe5 {[%clk 0:00:42]} 25. dxe5 {[%clk 0:00:25]}  bxa4 {[%clk 0:00:41]} 26. Ke2 {[%clk 0:00:22]}  Be4 {[%clk 0:00:32]} 27. Ra1 {[%clk 0:00:13]}  Bd8 {[%clk 0:00:26]} 28. Rc4 {[%clk 0:00:09]}  Rb2+ {[%clk 0:00:21]} 29. Kd1 {[%clk 0:00:08]}  Bf5 {[%clk 0:00:13]} 30. Rd4 {[%clk 0:00:06]}  Bb6 {[%clk 0:00:12]} 31. Rf4 {[%clk 0:00:06]}  Be6 {[%clk 0:00:12]} 32. Raxa4 {[%clk 0:00:04]}  Bb3+ {[%clk 0:00:11]} 33. Kc1 {[%clk 0:00:05]}  Rc2+ {[%clk 0:00:12]} 34. Kb1 {[%clk 0:00:06]}  Bxa4 {[%clk 0:00:12]} 35. Rxa4 {[%clk 0:00:05]}  Rxf2 {[%clk 0:00:12]} 36. Rxh4 {[%clk 0:00:06]}  Bxe3 {[%clk 0:00:12]} 37. Rg4 {[%clk 0:00:07]}  Rf4 {[%clk 0:00:12]} 38. e6 {[%clk 0:00:05]}  Rxg4 {[%clk 0:00:09]} 39. exf7+ {[%clk 0:00:05]}  Kxf7 {[%clk 0:00:10]} 40. hxg4 {[%clk 0:00:05]}  Kg6 {[%clk 0:00:11]} 41. Kc2 {[%clk 0:00:05]}  Kg5 {[%clk 0:00:11]} 42. Kd3 {[%clk 0:00:06]}  Bb6 {[%clk 0:00:12]} 43. Ke2 {[%clk 0:00:07]}  Kxg4 {[%clk 0:00:12]} 44. Kf1 {[%clk 0:00:03]}  Kg3 {[%clk 0:00:13]} 0-1


[Site "https://www.chess.com"]

[Event "Titled Tuesday Blitz August 22 Late 2023"]
[White "Krishnan, Varun"]
[Black "Sari, Yasin"]
[WhiteFideId "5054508"]
[BlackFideId "6320902"]
[WhiteElo "2705"]
[BlackElo "2405"]
[Result "1-0"]
[Round "1"]
[TimeControl "180+1"]
[Date "2023.08.22"]
[WhiteClock "0:00:59"]
[BlackClock "0:00:09"]
[Board "102"]

1. d4 {[%clk 0:02:57]}  Nf6 {[%clk 0:02:59]} 2. c4 {[%clk 0:02:57]}  g6 {[%clk 0:02:59]} 3. g3 {[%clk 0:02:56]}  Bg7 {[%clk 0:02:59]} 4. Bg2 {[%clk 0:02:57]}  O-O {[%clk 0:02:59]} 5. Nf3 {[%clk 0:02:57]}  c5 {[%clk 0:02:58]} 6. O-O {[%clk 0:02:58]}  cxd4 {[%clk 0:02:57]} 7. Nxd4 {[%clk 0:02:57]}  Nc6 {[%clk 0:02:57]} 8. Nc3 {[%clk 0:02:57]}  d6 {[%clk 0:02:44]} 9. b3 {[%clk 0:02:54]}  Nxd4 {[%clk 0:02:34]} 10. Qxd4 {[%clk 0:02:53]}  Ne4 {[%clk 0:02:31]} 11. Qxe4 {[%clk 0:02:43]}  Bxc3 {[%clk 0:02:31]} 12. Bh6 {[%clk 0:02:32]}  Bxa1 {[%clk 0:01:35]} 13. Bxf8 {[%clk 0:02:30]}  Bf6 {[%clk 0:01:35]} 14. Bh6 {[%clk 0:02:29]}  Rb8 {[%clk 0:01:34]} 15. Rd1 {[%clk 0:02:19]}  Qc7 {[%clk 0:01:25]} 16. Qe3 {[%clk 0:02:07]}  b5 {[%clk 0:01:19]} 17. c5 {[%clk 0:02:00]}  Be6 {[%clk 0:00:56]} 18. Bf4 {[%clk 0:01:35]}  Be5 {[%clk 0:00:47]} 19. Bxe5 {[%clk 0:01:30]}  dxe5 {[%clk 0:00:48]} 20. c6 {[%clk 0:01:29]}  f5 {[%clk 0:00:35]} 21. Qc5 {[%clk 0:01:09]}  a6 {[%clk 0:00:33]} 22. Bd5 {[%clk 0:01:04]}  Bxd5 {[%clk 0:00:28]} 23. Qxd5+ {[%clk 0:01:04]}  Kh8 {[%clk 0:00:09]} 24. Qe6 {[%clk 0:00:59]} 1-0


[Site "https://www.chess.com"]

[Event "Titled Tuesday Blitz August 22 Late 2023"]
[White "ExchangeAB"]
[Black "carokannlover213"]
[WhiteElo "2404"]
[BlackElo "2704"]
[Result "0-1"]
[Round "1"]
[TimeControl "180+1"]
[Date "2023.08.22"]
[WhiteClock "0:00:13"]
[BlackClock "0:00:05"]
[Board "103"]

1. d4 {[%clk 0:03:00]}  e6 {[%clk 0:02:58]} 2. Nc3 {[%clk 0:03:00]}  Nf6 {[%clk 0:02:57]} 3. e4 {[%clk 0:03:00]}  d5 {[%clk 0:02:57]} 4. exd5 {[%clk 0:02:59]}  exd5 {[%clk 0:02:56]} 5. Bd3 {[%clk 0:02:59]}  c5 {[%clk 0:02:49]} 6. dxc5 {[%clk 0:02:54]}  Bxc5 {[%clk 0:02:50]} 7. Nge2 {[%clk 0:02:47]}  O-O {[%clk 0:02:48]} 8. O-O {[%clk 0:02:46]}  Be6 {[%clk 0:02:49]} 9. Nb5 {[%clk 0:02:43]}  Nc6 {[%clk 0:02:47]} 10. c3 {[%clk 0:02:43]}  a6 {[%clk 0:02:39]} 11. Nbd4 {[%clk 0:02:42]}  Nxd4 {[%clk 0:02:38]} 12. Nxd4 {[%clk 0:02:43]}  Bxd4 {[%clk 0:02:37]} 13. cxd4 {[%clk 0:02:44]}  Qd7 {[%clk 0:02:37]} 14. Bf4 {[%clk 0:02:41]}  Bf5 {[%clk 0:02:35]} 15. Rc1 {[%clk 0:02:38]}  Bxd3 {[%clk 0:02:34]} 16. Qxd3 {[%clk 0:02:39]}  Rac8 {[%clk 0:02:33]} 17. f3 {[%clk 0:02:22]}  Rfe8 {[%clk 0:02:31]} 18. Be5 {[%clk 0:02:21]}  Rc6 {[%clk 0:02:19]} 19. Rxc6 {[%clk 0:02:20]}  Qxc6 {[%clk 0:02:18]} 20. Bxf6 {[%clk 0:02:06]}  Qxf6 {[%clk 0:02:19]} 21. Rc1 {[%clk 0:02:06]}  g6 {[%clk 0:02:13]} 22. Kf1 {[%clk 0:01:57]}  Qf4 {[%clk 0:02:10]} 23. Re1 {[%clk 0:01:47]}  Rxe1+ {[%clk 0:02:05]} 24. Kxe1 {[%clk 0:01:47]}  Qc1+ {[%clk 0:02:03]} 25. Kf2 {[%clk 0:01:31]}  Qxb2+ {[%clk 0:02:01]} 26. Kg3 {[%clk 0:01:31]}  Qxa2 {[%clk 0:01:50]} 27. Qe3 {[%clk 0:01:31]}  Qa4 {[%clk 0:01:47]} 28. Qe5 {[%clk 0:01:30]}  Qc6 {[%clk 0:01:46]} 29. Kf4 {[%clk 0:01:09]}  Qd7 {[%clk 0:01:22]} 30. g4 {[%clk 0:01:06]}  f6 {[%clk 0:00:56]} 31. Qb8+ {[%clk 0:01:06]}  Kg7 {[%clk 0:00:54]} 32. h4 {[%clk 0:01:05]}  h6 {[%clk 0:00:52]} 33. h5 {[%clk 0:00:58]}  g5+ {[%clk 0:00:48]} 34. Ke3 {[%clk 0:00:57]}  a5 {[%clk 0:00:35]} 35. Qa7 {[%clk 0:00:55]}  a4 {[%clk 0:00:34]} 36. Kd2 {[%clk 0:00:51]}  f5 {[%clk 0:00:25]} 37. Qb6 {[%clk 0:00:44]}  Qc6 {[%clk 0:00:21]} 38. Qd8 {[%clk 0:00:42]}  fxg4 {[%clk 0:00:12]} 39. Qe7+ {[%clk 0:00:41]}  Kg8 {[%clk 0:00:12]} 40. fxg4 {[%clk 0:00:39]}  b5 {[%clk 0:00:09]} 41. Qd8+ {[%clk 0:00:32]}  Kf7 {[%clk 0:00:10]} 42. Qh8 {[%clk 0:00:29]}  Ke7 {[%clk 0:00:07]} 43. Qg7+ {[%clk 0:00:29]}  Kd8 {[%clk 0:00:07]} 44. Qf8+ {[%clk 0:00:28]}  Kc7 {[%clk 0:00:08]} 45. Qb4 {[%clk 0:00:26]}  Kb6 {[%clk 0:00:08]} 46. Qf8 {[%clk 0:00:26]}  Ka5 {[%clk 0:00:06]} 47. Qe7 {[%clk 0:00:23]}  b4 {[%clk 0:00:04]} 48. Qa7+ {[%clk 0:00:23]}  Kb5 {[%clk 0:00:05]} 49. Qb8+ {[%clk 0:00:22]}  Kc4 {[%clk 0:00:05]} 50. Qa7 {[%clk 0:00:20]}  Kb3 {[%clk 0:00:04]} 51. Qh7 {[%clk 0:00:18]}  Qc3+ {[%clk 0:00:04]} 52. Ke2 {[%clk 0:00:16]}  Qc2+ {[%clk 0:00:04]} 53. Qxc2+ {[%clk 0:00:13]}  Kxc2 {[%clk 0:00:05]} 0-1


[Site "https://www.chess.com"]

[Event "Titled Tuesday Blitz August 22 Late 2023"]
[White "Komov, Roman"]
[Black "Haitin, Ilja"]
[WhiteFideId "24175714"]
[BlackFideId "4501764"]
[WhiteElo "2700"]
[BlackElo "2401"]
[Result "1-0"]
[Round "1"]
[TimeControl "180+1"]
[Date "2023.08.22"]
[WhiteClock "0:00:10"]
[BlackClock "0:00:00"]
[Board "104"]

1. e4 {[%clk 0:03:00]}  e6 {[%clk 0:02:56]} 2. d4 {[%clk 0:03:00]}  d5 {[%clk 0:02:57]} 3. e5 {[%clk 0:03:00]}  c5 {[%clk 0:02:56]} 4. c3 {[%clk 0:03:00]}  Qb6 {[%clk 0:02:54]} 5. Nf3 {[%clk 0:03:01]}  Bd7 {[%clk 0:02:54]} 6. Bd3 {[%clk 0:03:01]}  Bb5 {[%clk 0:02:53]} 7. dxc5 {[%clk 0:02:58]}  Bxc5 {[%clk 0:02:51]} 8. b4 {[%clk 0:02:59]}  Bxd3 {[%clk 0:02:19]} 9. Qxd3 {[%clk 0:02:53]}  Bf8 {[%clk 0:02:07]} 10. a4 {[%clk 0:02:50]}  Nc6 {[%clk 0:02:05]} 11. a5 {[%clk 0:02:50]}  Qc7 {[%clk 0:02:03]} 12. O-O {[%clk 0:02:36]}  Nge7 {[%clk 0:01:58]} 13. Bf4 {[%clk 0:02:30]}  Ng6 {[%clk 0:01:57]} 14. Bg3 {[%clk 0:02:31]}  h5 {[%clk 0:01:50]} 15. h4 {[%clk 0:02:30]}  Be7 {[%clk 0:01:47]} 16. Na3 {[%clk 0:02:25]}  a6 {[%clk 0:01:46]} 17. Nc2 {[%clk 0:01:49]}  Rc8 {[%clk 0:01:40]} 18. b5 {[%clk 0:01:35]}  Nxa5 {[%clk 0:01:33]} 19. bxa6 {[%clk 0:01:27]}  bxa6 {[%clk 0:01:34]} 20. Qxa6 {[%clk 0:01:23]}  Nc4 {[%clk 0:01:32]} 21. Qb5+ {[%clk 0:01:21]}  Qd7 {[%clk 0:01:24]} 22. Qxd7+ {[%clk 0:01:13]}  Kxd7 {[%clk 0:01:25]} 23. Rfb1 {[%clk 0:01:14]}  Rc7 {[%clk 0:01:24]} 24. Ncd4 {[%clk 0:01:12]}  Rhc8 {[%clk 0:01:10]} 25. Rb3 {[%clk 0:01:05]}  Bc5 {[%clk 0:01:07]} 26. Kf1 {[%clk 0:00:37]}  Bxd4 {[%clk 0:01:01]} 27. cxd4 {[%clk 0:00:38]}  Ne7 {[%clk 0:00:55]} 28. Bf4 {[%clk 0:00:26]}  Nf5 {[%clk 0:00:51]} 29. g3 {[%clk 0:00:21]}  Ke8 {[%clk 0:00:41]} 30. Ke2 {[%clk 0:00:21]}  Rc6 {[%clk 0:00:32]} 31. Kd3 {[%clk 0:00:22]}  Rb6 {[%clk 0:00:31]} 32. Rab1 {[%clk 0:00:21]}  Rxb3+ {[%clk 0:00:31]} 33. Rxb3 {[%clk 0:00:22]}  Ra8 {[%clk 0:00:31]} 34. Ng5 {[%clk 0:00:19]}  Ra3 {[%clk 0:00:28]} 35. Rxa3 {[%clk 0:00:19]}  Nxa3 {[%clk 0:00:29]} 36. Nh3 {[%clk 0:00:16]}  Nc4 {[%clk 0:00:27]} 37. Bc1 {[%clk 0:00:16]}  f6 {[%clk 0:00:25]} 38. Nf4 {[%clk 0:00:17]}  fxe5 {[%clk 0:00:23]} 39. Nxe6 {[%clk 0:00:15]}  e4+ {[%clk 0:00:22]} 40. Kc3 {[%clk 0:00:15]}  Kf7 {[%clk 0:00:17]} 41. Nf4 {[%clk 0:00:16]}  e3 {[%clk 0:00:14]} 42. Bxe3 {[%clk 0:00:12]}  Ncxe3 {[%clk 0:00:13]} 43. fxe3 {[%clk 0:00:13]}  Nxe3 {[%clk 0:00:11]} 44. Nxh5 {[%clk 0:00:13]}  Nf1 {[%clk 0:00:09]} 45. Kd3 {[%clk 0:00:12]}  g6 {[%clk 0:00:09]} 46. Ke2 {[%clk 0:00:08]}  Nh2 {[%clk 0:00:06]} 47. Nf4 {[%clk 0:00:08]}  Ng4 {[%clk 0:00:01]} 48. Nxd5 {[%clk 0:00:09]}  Ke6 {[%clk 0:00:02]} 49. Ne3 {[%clk 0:00:09]}  Nf6 {[%clk 0:00:02]} 50. Kf3 {[%clk 0:00:09]}  Nd7 {[%clk 0:00:01]} 51. Kf4 {[%clk 0:00:09]}  Nb6 {[%clk 0:00:01]} 52. g4 {[%clk 0:00:10]}  Na4 {[%clk 0:00:01]} 53. Kg5 {[%clk 0:00:10]}  Kf7 {[%clk 0:00:00]} 54. d5 {[%clk 0:00:10]} 1-0


[Site "https://www.chess.com"]

[Event "Titled Tuesday Blitz August 22 Late 2023"]
[White "Cuenca Jimenez, Jose Fernando"]
[Black "Albertini, Luca"]
[WhiteFideId "2255570"]
[BlackFideId "847038"]
[WhiteElo "2698"]
[BlackElo "2398"]
[Result "1-0"]
[Round "1"]
[TimeControl "180+1"]
[Date "2023.08.22"]
[WhiteClock "0:00:55"]
[BlackClock "0:00:37"]
[Board "106"]

1. c4 {[%clk 0:03:00]}  e5 {[%clk 0:02:58]} 2. Nc3 {[%clk 0:03:00]}  Nf6 {[%clk 0:02:59]} 3. Nf3 {[%clk 0:02:59]}  Nc6 {[%clk 0:02:58]} 4. e4 {[%clk 0:02:59]}  Bc5 {[%clk 0:02:56]} 5. Nxe5 {[%clk 0:02:59]}  Bxf2+ {[%clk 0:02:55]} 6. Kxf2 {[%clk 0:02:59]}  Nxe5 {[%clk 0:02:56]} 7. d4 {[%clk 0:02:59]}  Ng6 {[%clk 0:02:55]} 8. Bd3 {[%clk 0:02:41]}  d6 {[%clk 0:02:44]} 9. Rf1 {[%clk 0:02:40]}  O-O {[%clk 0:02:43]} 10. Kg1 {[%clk 0:02:40]}  Bg4 {[%clk 0:02:39]} 11. Qe1 {[%clk 0:02:33]}  h6 {[%clk 0:02:34]} 12. Qf2 {[%clk 0:02:30]}  Kh7 {[%clk 0:02:22]} 13. h3 {[%clk 0:02:23]}  Bd7 {[%clk 0:02:21]} 14. Bd2 {[%clk 0:02:17]}  c6 {[%clk 0:02:20]} 15. Rae1 {[%clk 0:02:12]}  Qb6 {[%clk 0:02:07]} 16. Be3 {[%clk 0:02:05]}  Rae8 {[%clk 0:02:04]} 17. Kh1 {[%clk 0:02:01]}  Qc7 {[%clk 0:02:01]} 18. b3 {[%clk 0:01:51]}  Qa5 {[%clk 0:01:59]} 19. Bd2 {[%clk 0:01:50]}  Qh5 {[%clk 0:01:55]} 20. Kg1 {[%clk 0:01:38]}  Bxh3 {[%clk 0:01:23]} 21. gxh3 {[%clk 0:01:33]}  Qxh3 {[%clk 0:01:24]} 22. Re3 {[%clk 0:01:30]}  Qh5 {[%clk 0:01:25]} 23. Rg3 {[%clk 0:01:13]}  Qa5 {[%clk 0:00:58]} 24. Nd5 {[%clk 0:01:07]}  Qxa2 {[%clk 0:00:55]} 25. Nxf6+ {[%clk 0:01:07]}  gxf6 {[%clk 0:00:55]} 26. Qh2 {[%clk 0:01:01]}  Nh4 {[%clk 0:00:46]} 27. e5+ {[%clk 0:00:55]}  f5 {[%clk 0:00:40]} 28. Qxh4 {[%clk 0:00:55]}  Qxd2 {[%clk 0:00:38]} 29. Bxf5+ {[%clk 0:00:55]}  Kh8 {[%clk 0:00:37]} 30. Qf6# {[%clk 0:00:55]} 1-0


[Site "https://www.chess.com"]

[Event "Titled Tuesday Blitz August 22 Late 2023"]
[White "Papasimakopoulos, Alexandros"]
[Black "Jorajuria Mendoza, Algol"]
[WhiteFideId "4244125"]
[BlackFideId "5128897"]
[WhiteElo "2689"]
[BlackElo "2392"]
[Result "1-0"]
[Round "1"]
[TimeControl "180+1"]
[Date "2023.08.22"]
[WhiteClock "0:02:35"]
[BlackClock "0:00:00"]
[Board "108"]

1. d4 {[%clk 0:03:00]}  d5 {[%clk 0:03:00]} 2. c4 {[%clk 0:03:01]}  e6 {[%clk 0:03:00]} 3. Nc3 {[%clk 0:03:02]}  Bb4 {[%clk 0:03:00]} 4. cxd5 {[%clk 0:03:02]}  exd5 {[%clk 0:02:59]} 5. Qa4+ {[%clk 0:03:03]}  Nc6 {[%clk 0:02:59]} 6. Nf3 {[%clk 0:03:02]}  Bd7 {[%clk 0:02:51]} 7. Qb3 {[%clk 0:03:01]}  Nge7 {[%clk 0:02:44]} 8. Bg5 {[%clk 0:03:00]}  f6 {[%clk 0:02:35]} 9. Bf4 {[%clk 0:03:00]}  a5 {[%clk 0:02:33]} 10. a3 {[%clk 0:02:59]}  a4 {[%clk 0:02:24]} 11. Qc2 {[%clk 0:03:00]}  Ba5 {[%clk 0:02:04]} 12. e3 {[%clk 0:03:00]}  Ng6 {[%clk 0:02:04]} 13. Bg3 {[%clk 0:03:00]}  O-O {[%clk 0:01:58]} 14. Bd3 {[%clk 0:02:59]}  Bxc3+ {[%clk 0:01:52]} 15. bxc3 {[%clk 0:02:57]}  Kf7 {[%clk 0:01:38]} 16. c4 {[%clk 0:02:57]}  Be6 {[%clk 0:01:34]} 17. O-O {[%clk 0:02:56]}  Nge7 {[%clk 0:01:21]} 18. Rab1 {[%clk 0:02:55]}  b6 {[%clk 0:01:20]} 19. cxd5 {[%clk 0:02:55]}  Bxd5 {[%clk 0:01:19]} 20. e4 {[%clk 0:02:55]}  Bb3 {[%clk 0:01:18]} 21. Rxb3 {[%clk 0:02:55]}  axb3 {[%clk 0:01:18]} 22. Qxb3+ {[%clk 0:02:56]}  Ke8 {[%clk 0:01:14]} 23. Bb5 {[%clk 0:02:53]}  f5 {[%clk 0:00:56]} 24. Rc1 {[%clk 0:02:51]}  fxe4 {[%clk 0:00:54]} 25. Rxc6 {[%clk 0:02:52]}  Nxc6 {[%clk 0:00:43]} 26. Qe6+ {[%clk 0:02:52]}  Qe7 {[%clk 0:00:39]} 27. Bxc6+ {[%clk 0:02:50]}  Kd8 {[%clk 0:00:40]} 28. Qd5+ {[%clk 0:02:50]}  Kc8 {[%clk 0:00:38]} 29. Bxa8 {[%clk 0:02:45]}  exf3 {[%clk 0:00:36]} 30. gxf3 {[%clk 0:02:43]}  Rf6 {[%clk 0:00:28]} 31. Qb7+ {[%clk 0:02:42]}  Kd7 {[%clk 0:00:28]} 32. d5 {[%clk 0:02:38]}  Qc5 {[%clk 0:00:21]} 33. Qb8 {[%clk 0:02:38]}  Rf8 {[%clk 0:00:16]} 34. Bc6+ {[%clk 0:02:37]}  Ke7 {[%clk 0:00:13]} 35. Qxc7+ {[%clk 0:02:36]}  Kf6 {[%clk 0:00:12]} 36. Qe5+ {[%clk 0:02:37]}  Kg6 {[%clk 0:00:11]} 37. Qe4+ {[%clk 0:02:37]}  Kh6 {[%clk 0:00:07]} 38. Qh4+ {[%clk 0:02:35]}  Kg6 {[%clk 0:00:06]} 39. Qg4+ {[%clk 0:02:35]}  Kf6 {[%clk 0:00:04]} 40. Bh4+ {[%clk 0:02:35]}  Ke5 {[%clk 0:00:00]} 41. Qe4+ {[%clk 0:02:35]} 1-0


[Site "https://www.chess.com"]